fUST/lending_fUST_20250619
["ID","MTS","AMOUNT","RATE_DAILY","PERIOD"]
[366526874,1750305040322,-2250.32,0.00021917,6]
[366526875,1750305040333,-460.0,0.00021917,6]
[366526876,1750305040344,-430.0,0.00021917,6]
[366526877,1750305040355,-430.0,0.00021917,6]
[366526878,1750305040365,-430.0,0.00021917,6]
[366526879,1750305040376,-460.0,0.00021917,6]
[366526880,1750305040387,-463.49,0.00021917,6]
[366526881,1750305040398,-460.0,0.00021917,6]
[366526882,1750305040408,-460.0,0.00021917,6]
[366526883,1750305040419,-460.0,0.00021917,6]
[366526884,1750305040429,-460.0,0.00021917,6]
[366526885,1750305040440,-460.0,0.00021917,6]
[366526886,1750305040451,-460.0,0.00021917,6]
[366526887,1750305040461,-460.0,0.00021917,6]
[366526888,1750305040472,-460.0,0.00021917,6]
[366526889,1750305040483,-2046.75,0.00021917,6]
[366526890,1750305040494,-460.0,0.00021917,6]
[366526891,1750305040505,-460.0,0.00021917,6]
[366526892,1750305040516,-460.0,0.00021917,6]
[366526893,1750305040527,-460.0,0.00021917,6]
[366526894,1750305040537,-430.0,0.00021917,6]
[366526895,1750305040547,-430.0,0.00021917,6]
[366526896,1750305040557,-460.0,0.00021917,6]
[366526897,1750305040566,-460.0,0.00021917,6]
[366526898,1750305040724,-460.0,0.00021917,6]
[366526899,1750305040739,-430.0,0.00021917,6]
[366526900,1750305040749,-460.0,0.00021917,6]
[366526901,1750305040759,-430.0,0.00021917,6]
[366526902,1750305040768,-502.88796754,0.00021917,6]
[366526903,1750305040777,-460.0,0.00021917,6]
[366526904,1750305040786,-406.22550796,0.00021917,6]
[366526905,1750305040796,-400.0,0.00021917,6]
[366526906,1750305040806,-406.72044272,0.00021917,6]
[366526907,1750305040816,-460.0,0.00021917,6]
[366526908,1750305040825,-460.0,0.00021917,6]
[366526909,1750305040835,-460.0,0.00021917,6]
[366526910,1750305040844,-460.0,0.00021917,2]
[366526911,1750305040853,-460.0,0.00021917,6]
[366526912,1750305040862,-460.0,0.00021917,6]
[366526913,1750305040871,-430.0,0.00021917,6]
[366526914,1750305040882,-430.0,0.00021917,6]
[366526915,1750305040893,-1053.61,0.00021917,6]
[366526916,1750305040902,-430.0,0.00021917,6]
[366526917,1750305040911,-460.0,0.00021917,6]
[366526918,1750305040920,-460.0,0.00021917,6]
[366526919,1750305040929,-453.37961413,0.00021917,6]
[366526920,1750305040938,-460.0,0.00021917,6]
[366526921,1750305040947,-460.0,0.00021917,6]
[366526922,1750305040956,-460.0,0.00021917,6]
[366526923,1750305040966,-460.0,0.00021917,6]
[366526924,1750305040975,-402.62596423,0.00021917,6]
[366526925,1750305040984,-847.09,0.00021917,6]
[366526926,1750305040993,-460.0,0.00021917,6]
[366526927,1750305041002,-460.0,0.00021917,6]
[366526928,1750305041011,-460.0,0.00021917,6]
[366526929,1750305041020,-430.0,0.00021917,6]
[366526930,1750305041030,-505.5678757,0.00021917,6]
[366526931,1750305041039,-460.0,0.00021917,6]
[366526932,1750305041048,-1347.18,0.00021917,6]
[366526933,1750305041057,-693.36,0.00021917,6]
[366526934,1750305041066,-430.0,0.00021917,6]
[366526935,1750305041075,-460.0,0.00021917,6]
[366526936,1750305041084,-430.0,0.00021917,6]
[366526937,1750305041093,-460.0,0.00021917,6]
[366526938,1750305041102,-460.0,0.00021917,6]
[366526939,1750305041111,-1773.55,0.00021917,6]
[366526940,1750305041120,-538.75124364,0.00021917,6]
[366526941,1750305041129,-460.0,0.00021917,6]
[366526942,1750305041138,-460.0,0.00021917,6]
[366526943,1750305041147,-460.0,0.00021917,6]
[366526944,1750305041156,-460.0,0.00021917,6]
[366526945,1750305041165,-460.0,0.00021917,6]
[366526946,1750305041174,-500.0,0.00021917,6]
[366526947,1750305041183,-460.0,0.00021917,6]
[366526948,1750305041192,-460.0,0.00021917,6]
[366526949,1750305041200,-460.0,0.00021917,6]
[366526950,1750305041209,-416.69997203,0.00021917,6]
[366526951,1750305041218,-520.5017,0.00021917,6]
[366526952,1750305041227,-460.0,0.00021917,6]
[366526953,1750305041236,-460.0,0.00021917,6]
[366526954,1750305041245,-591.46070835,0.00021917,6]
[366526955,1750305041254,-460.0,0.00021917,6]
[366526956,1750305041263,-460.0,0.00021917,6]
[366526957,1750305041271,-460.0,0.00021917,6]
[366526958,1750305041280,-460.0,0.00021917,6]
[366526959,1750305041289,-430.0,0.00021917,6]
[366526960,1750305041298,-460.0,0.00021917,6]
[366526961,1750305041307,-460.0,0.00021917,6]
[366526962,1750305041316,-460.0,0.00021917,6]
[366526963,1750305041325,-460.0,0.00021917,6]
[366526964,1750305041335,-460.0,0.00021917,6]
[366526965,1750305041344,-460.0,0.00021917,6]
[366526966,1750305041353,-460.0,0.00021917,6]
[366526967,1750305041362,-460.0,0.00021917,6]
[366526968,1750305041371,-300.0,0.00021917,2]
[366526969,1750305041380,-430.0,0.00021917,6]
[366526970,1750305041389,-460.0,0.00021917,6]
[366526971,1750305041398,-460.0,0.00021917,6]
[366526972,1750305041406,-1140.85627546,0.00021917,6]
[366526973,1750305041415,-460.0,0.00021917,6]
[366526974,1750305041425,-460.0,0.00021917,6]
[366526975,1750305041434,-460.0,0.00021917,6]
[366526976,1750305041442,-460.0,0.00021917,6]
[366526977,1750305041451,-460.0,0.00021917,6]
[366526978,1750305041460,-460.0,0.00021917,6]
[366526979,1750305041469,-460.0,0.00021917,6]
[366526980,1750305041479,-460.0,0.00021917,6]
[366526981,1750305041488,-460.0,0.00021917,6]
[366526982,1750305041497,-420.0,0.00021917,6]
[366526983,1750305041507,-430.0,0.00021917,6]
[366526984,1750305041516,-460.0,0.00021917,6]
[366526985,1750305041525,-460.0,0.00021917,6]
[366526986,1750305041534,-460.0,0.00021917,6]
[366526987,1750305041543,-460.0,0.00021917,6]
[366526988,1750305041552,-460.0,0.00021917,6]
[366526989,1750305041561,-931.97,0.00021917,6]
[366526990,1750305041570,-430.0,0.00021917,6]
[366526991,1750305041582,-819.59,0.00021917,6]
[366526992,1750305041591,-500.0,0.00021917,6]
[366526993,1750305041600,-440.0,0.00021917,6]
[366526994,1750305041609,-460.0,0.00021917,6]
[366526995,1750305041619,-430.0,0.00021917,6]
[366526996,1750305041628,-1291.08,0.00021917,6]
[366526997,1750305041637,-460.0,0.00021917,6]
[366526998,1750305041645,-460.0,0.00021917,6]
[366526999,1750305041655,-402.82316444,0.00021917,6]
[366527000,1750305041665,-460.0,0.00021917,6]
[366527001,1750305041673,-460.0,0.00021917,6]
[366527002,1750305041682,-548.15,0.00021917,6]
[366527003,1750305041692,-204.19509174,0.00021917,6]
[366527004,1750305041701,-1151.13,0.00021917,6]
[366527005,1750305041710,-460.0,0.00021917,6]
[366527006,1750305041719,-420.0,0.00021917,6]
[366527007,1750305041729,-460.0,0.00021917,6]
[366527008,1750305041738,-460.0,0.00021917,6]
[366527009,1750305041747,-460.0,0.00021917,6]
[366527010,1750305041756,-420.0,0.00021917,6]
[366527011,1750305041766,-400.0,0.00021917,6]
[366527012,1750305041775,-460.0,0.00021917,6]
[366527013,1750305041784,-460.0,0.00021917,6]
[366527014,1750305041793,-430.0,0.00021917,6]
[366527015,1750305041803,-460.0,0.00021917,6]
[366527016,1750305041813,-460.0,0.00021917,6]
[366527017,1750305041822,-460.0,0.00021917,6]
[366527018,1750305041831,-305.74093612,0.00021917,6]
[366527019,1750305041840,-460.0,0.00021917,6]
[366527020,1750305041849,-460.0,0.00021917,6]
[366527021,1750305041859,-460.0,0.00021917,6]
[366527022,1750305041868,-460.0,0.00021917,6]
[366527023,1750305041877,-460.0,0.00021917,6]
[366527024,1750305041886,-460.0,0.00021917,6]
[366527025,1750305041895,-430.0,0.00021917,6]
[366527026,1750305041905,-460.0,0.00021917,6]
[366527027,1750305041914,-460.0,0.00021917,6]
[366527028,1750305041923,-430.0,0.00021917,6]
[366527029,1750305041933,-460.0,0.00021917,6]
[366527030,1750305041943,-460.0,0.00021917,6]
[366527031,1750305041952,-400.68537802,0.00021917,6]
[366527032,1750305041962,-460.0,0.00021917,6]
[366527033,1750305041971,-460.0,0.00021917,6]
[366527034,1750305041981,-460.0,0.00021917,6]
[366527035,1750305041991,-360.0,0.00021917,6]
[366527036,1750305042000,-305.82518055,0.00021917,6]
[366527037,1750305042009,-460.0,0.00021917,6]
[366527038,1750305042018,-404.75512997,0.00021917,6]
[366527039,1750305042027,-460.0,0.00021917,6]
[366527040,1750305042036,-460.0,0.00021917,6]
[366527041,1750305042045,-460.0,0.00021917,6]
[366527042,1750305042055,-460.0,0.00021917,6]
[366527043,1750305042064,-430.0,0.00021917,6]
[366527044,1750305042073,-529.4449934,0.00021917,6]
[366527045,1750305042083,-1783.82,0.00021917,6]
[366527046,1750305042092,-460.0,0.00021917,6]
[366527047,1750305042101,-460.0,0.00021917,6]
[366527048,1750305042110,-460.0,0.00021917,6]
[366527049,1750305042119,-460.0,0.00021917,6]
[366527050,1750305042129,-400.0,0.00021917,6]
[366527051,1750305042138,-430.0,0.00021917,6]
[366527052,1750305042147,-2916.3,0.00021917,6]
[366527053,1750305042157,-508.25772998,0.00021917,6]
[366527054,1750305042166,-460.0,0.00021917,6]
[366527055,1750305042175,-460.0,0.00021917,6]
[366527056,1750305042185,-460.0,0.00021917,6]
[366527057,1750305042194,-766.7,0.00021917,6]
[366527058,1750305042205,-516.39,0.00021917,6]
[366527059,1750305042214,-460.0,0.00021917,6]
[366527060,1750305042224,-430.0,0.00021917,6]
[366527061,1750305042233,-430.0,0.00021917,6]
[366527062,1750305042243,-460.0,0.00021917,6]
[366527063,1750305042252,-460.0,0.00021917,6]
[366527064,1750305042261,-460.0,0.00021917,6]
[366527065,1750305042269,-591.1,0.00021917,6]
[366527066,1750305042279,-460.0,0.00021917,6]
[366527067,1750305042287,-539.85,0.00021917,6]
[366527068,1750305042296,-384.7144334,0.00021917,6]
[366527069,1750305042305,-460.0,0.00021917,6]
[366527070,1750305042314,-450.33000574,0.00021917,6]
[366527071,1750305042323,-460.0,0.00021917,6]
[366527072,1750305042332,-2592.82,0.00021917,6]
[366527073,1750305042341,-430.0,0.00021917,6]
[366527074,1750305042350,-430.0,0.00021917,6]
[366527075,1750305042359,-313.19630834,0.00021917,6]
[366527076,1750305042368,-460.0,0.00021917,6]
[366527077,1750305042377,-460.0,0.00021917,6]
[366527078,1750305042386,-430.0,0.00021917,6]
[366527079,1750305042395,-460.0,0.00021917,6]
[366527080,1750305042404,-2543.22,0.00021917,6]
[366527081,1750305042412,-430.0,0.00021917,6]
[366527082,1750305042421,-450.0,0.00021917,6]
[366527083,1750305042431,-4759.51,0.00021917,6]
[366527084,1750305042440,-504.78590229,0.00021917,6]
[366527085,1750305042449,-460.0,0.00021917,6]
[366527086,1750305042458,-460.0,0.00021917,6]
[366527087,1750305042467,-460.0,0.00021917,6]
[366527088,1750305042477,-430.0,0.00021917,6]
[366527089,1750305042486,-500.0,0.00021973,2]
[366527090,1750305042495,-500.0,0.00021973,2]
[366527091,1750305042504,-500.0,0.00021973,2]
[366527092,1750305042513,-500.0,0.00021973,2]
[366527093,1750305042523,-501.85679149,0.00021973,2]
[366527094,1750305042534,-297.29849381,0.00021973,2]
[366527095,1750305042543,-566.28734744,0.00021973,2]
[366527096,1750305042553,-169.0,0.00022,2]
[366527097,1750305042562,-348.11823536,0.00022127,2]
[366527098,1750305042571,-219.43,0.00022181,3]
[366527099,1750305042583,-460.0,0.00022191,6]
[366527100,1750305042592,-409.68981604,0.00022191,6]
[366527101,1750305042601,-419.46328513,0.00022191,6]
[366527102,1750305042611,-202.24794524,0.00022191,6]
[366527103,1750305042621,-374.37674352,0.00022191,6]
[366527104,1750305042631,-305.94169269,0.00022191,6]
[366527105,1750305042642,-460.0,0.00022191,6]
[366527106,1750305042651,-338.21714145,0.00022191,6]
[366527107,1750305042661,-460.0,0.00022191,6]
[366527109,1750305042670,-460.0,0.00022191,6]
[366527111,1750305042679,-460.0,0.00022191,6]
[366527112,1750305042688,-460.0,0.00022191,6]
[366527114,1750305042697,-460.0,0.00022191,6]
[366527116,1750305042706,-502.60573213,0.00022191,6]
[366527117,1750305042715,-460.0,0.00022191,6]
[366527118,1750305042724,-460.0,0.00022191,6]
[366527119,1750305042734,-460.0,0.00022191,6]
[366527120,1750305042744,-222.75161072,0.00022191,6]
[366527121,1750305042755,-460.0,0.00022191,6]
[366527122,1750305042766,-460.0,0.00022191,6]
[366527124,1750305042775,-2035.86,0.00022191,6]
[366527125,1750305042784,-460.0,0.00022191,6]
[366527126,1750305042795,-460.0,0.00022191,6]
[366527127,1750305042805,-460.0,0.00022191,6]
[366527128,1750305042815,-460.0,0.00022191,6]
[366527129,1750305042825,-528.98,0.00022191,6]
[366527130,1750305042834,-401.24379111,0.00022191,6]
[366527131,1750305042844,-460.0,0.00022191,6]
[366527132,1750305042853,-210.0,0.00022191,6]
[366527133,1750305042862,-460.0,0.00022191,6]
[366527134,1750305042872,-460.0,0.00022191,6]
[366527135,1750305042881,-460.0,0.00022191,6]
[366527137,1750305042890,-460.0,0.00022191,6]
[366527139,1750305042900,-460.0,0.00022191,6]
[366527141,1750305042909,-435.30222939,0.00022191,6]
[366527143,1750305042918,-460.0,0.00022191,6]
[366527145,1750305042927,-432.03141751,0.00022191,6]
[366527147,1750305042936,-460.0,0.00022191,6]
[366527148,1750305042945,-175.54147763,0.00022191,6]
[366527150,1750305042958,-409.69361993,0.00022191,6]
[366527151,1750305042967,-460.0,0.00022191,6]
[366527152,1750305042976,-460.0,0.00022191,6]
[366527153,1750305042985,-460.0,0.00022191,6]
[366527154,1750305042995,-440.0,0.00022191,6]
[366527155,1750305043003,-460.0,0.00022191,6]
[366527156,1750305043013,-460.0,0.00022191,6]
[366527157,1750305043021,-267.12169814,0.00022191,6]
[366527158,1750305043030,-2524.06,0.00022191,6]
[366527159,1750305043039,-430.0,0.00022191,6]
[366527160,1750305043049,-460.0,0.00022191,6]
[366527161,1750305043058,-460.0,0.00022191,6]
[366527162,1750305043067,-460.0,0.00022191,6]
[366527163,1750305043076,-440.0,0.00022191,6]
[366527164,1750305043085,-460.0,0.00022191,6]
[366527165,1750305043094,-460.0,0.00022191,6]
[366527166,1750305043103,-460.0,0.00022191,6]
[366527167,1750305043113,-588.9,0.00022191,6]
[366527168,1750305043122,-460.0,0.00022191,6]
[366527169,1750305043131,-560.97,0.00022191,6]
[366527170,1750305043141,-460.0,0.00022191,6]
[366527171,1750305043150,-450.0,0.00022191,6]
[366527172,1750305043161,-460.0,0.00022191,6]
[366527173,1750305043169,-1696.59,0.00022191,6]
[366527174,1750305043178,-460.0,0.00022191,6]
[366527175,1750305043188,-2250.32,0.00022191,6]
[366527176,1750305043198,-463.49,0.00022191,6]
[366527177,1750305043210,-460.0,0.00022191,6]
[366527178,1750305043219,-460.60111219,0.00022191,6]
[366527179,1750305043229,-370.0,0.00022191,6]
[366527180,1750305043238,-2046.75,0.00022191,6]
[366527181,1750305043247,-460.84,0.00022191,6]
[366527182,1750305043256,-460.0,0.00022191,6]
[366527183,1750305043265,-460.0,0.00022191,6]
[366527184,1750305043274,-460.0,0.00022191,2]
[366527185,1750305043284,-460.0,0.00022191,6]
[366527186,1750305043293,-1053.61,0.00022191,6]
[366527187,1750305043302,-479.17295753,0.00022191,6]
[366527189,1750305043312,-460.0,0.00022191,6]
[366527190,1750305043322,-460.0,0.00022191,6]
[366527192,1750305043331,-284.71111011,0.00022191,6]
[366527194,1750305043341,-460.0,0.00022191,6]
[366527195,1750305043351,-847.09,0.00022191,6]
[366527196,1750305043360,-490.0,0.00022191,6]
[366527197,1750305043369,-460.0,0.00022191,6]
[366527198,1750305043379,-460.0,0.00022191,6]
[366527199,1750305043389,-1347.18,0.00022191,6]
[366527200,1750305043398,-693.36,0.00022191,6]
[366527201,1750305043407,-460.0,0.00022191,6]
[366527202,1750305043416,-1773.55,0.00022191,6]
[366527203,1750305043427,-460.0,0.00022191,6]
[366527204,1750305043436,-450.0,0.00022191,6]
[366527205,1750305043446,-460.0,0.00022191,6]
[366527206,1750305043456,-460.0,0.00022191,6]
[366527207,1750305043465,-453.09,0.00022191,6]
[366527208,1750305043476,-460.0,0.00022191,6]
[366527209,1750305043485,-460.0,0.00022191,6]
[366527210,1750305043494,-460.0,0.00022191,6]
[366527211,1750305043503,-460.0,0.00022191,6]
[366527212,1750305043512,-460.0,0.00022191,6]
[366527213,1750305043521,-420.0,0.00022191,6]
[366527214,1750305043531,-397.95755824,0.00022191,6]
[366527215,1750305043540,-460.0,0.00022191,6]
[366527216,1750305043549,-460.0,0.00022191,6]
[366527217,1750305043558,-460.0,0.00022191,6]
[366527218,1750305043568,-460.0,0.00022191,6]
[366527219,1750305043579,-460.0,0.00022191,6]
[366527220,1750305043588,-460.0,0.00022191,6]
[366527221,1750305043598,-300.0,0.00022191,2]
[366527222,1750305043608,-460.0,0.00022191,6]
[366527223,1750305043617,-460.0,0.00022191,6]
[366527224,1750305043627,-460.0,0.00022191,6]
[366527225,1750305043638,-460.0,0.00022191,6]
[366527226,1750305043648,-460.0,0.00022191,6]
[366527227,1750305043657,-460.0,0.00022191,6]
[366527228,1750305043666,-460.0,0.00022191,6]
[366527229,1750305043677,-931.97,0.00022191,6]
[366527230,1750305043802,-819.59,0.00022191,6]
[366527231,1750305043812,-460.0,0.00022191,6]
[366527232,1750305043821,-1291.08,0.00022191,6]
[366527233,1750305043831,-300.0,0.00022191,6]
[366527234,1750305043840,-209.15449928,0.00022191,6]
[366527235,1750305043850,-460.0,0.00022191,6]
[366527236,1750305043859,-340.0,0.00022191,6]
[366527237,1750305043869,-548.15,0.00022191,6]
[366527238,1750305043878,-1151.13,0.00022191,6]
[366527239,1750305043887,-460.0,0.00022191,6]
[366527240,1750305043897,-460.0,0.00022191,6]
[366527241,1750305043906,-370.0,0.00022191,6]
[366527242,1750305043916,-460.0,0.00022191,6]
[366527243,1750305043926,-360.0,0.00022191,6]
[366527244,1750305043935,-460.0,0.00022191,6]
[366527245,1750305043945,-341.3633728,0.00022191,6]
[366527246,1750305043955,-460.0,0.00022191,6]
[366527247,1750305043964,-460.0,0.00022191,6]
[366527248,1750305043974,-460.0,0.00022191,6]
[366527249,1750305043984,-319.83038736,0.00022191,6]
[366527250,1750305043994,-448.33,0.00022191,6]
[366527251,1750305044003,-460.0,0.00022191,6]
[366527252,1750305044013,-460.0,0.00022191,6]
[366527253,1750305044022,-460.0,0.00022191,6]
[366527254,1750305044031,-460.0,0.00022191,6]
[366527255,1750305044041,-1783.82,0.00022191,6]
[366527256,1750305044051,-460.0,0.00022191,6]
[366527257,1750305044060,-460.0,0.00022191,6]
[366527258,1750305044070,-460.0,0.00022191,6]
[366527259,1750305044080,-2916.3,0.00022191,6]
[366527260,1750305044089,-460.0,0.00022191,6]
[366527261,1750305044099,-766.7,0.00022191,6]
[366527262,1750305044108,-516.39,0.00022191,6]
[366527263,1750305044118,-440.0,0.00022191,6]
[366527264,1750305044127,-460.0,0.00022191,6]
[366527265,1750305044137,-386.12163706,0.00022191,6]
[366527266,1750305044147,-460.0,0.00022191,6]
[366527267,1750305044156,-591.1,0.00022191,6]
[366527268,1750305044166,-539.85,0.00022191,6]
[366527269,1750305044176,-460.0,0.00022191,6]
[366527270,1750305044185,-380.0,0.00022191,6]
[366527271,1750305044195,-2592.82,0.00022191,6]
[366527272,1750305044205,-460.0,0.00022191,6]
[366527273,1750305044214,-2543.22,0.00022191,6]
[366527274,1750305044224,-4759.51,0.00022191,6]
[366527275,1750305044234,-460.0,0.00022191,6]
[366527276,1750305044243,-460.0,0.00022191,6]
[366527277,1750305044253,-169.0,0.00022192,7]
[366527278,1750305044263,-420.0,0.0002235,2]
[366527279,1750305044272,-958.73565814,0.00022365,2]
[366527280,1750305044282,-5348.29030255,0.00022365,2]
[366527281,1750305044291,-372.35572473,0.00022379,2]
[366527282,1750305044301,-243.78552427,0.00022423,2]
[366527283,1750305044310,-507.48589587,0.00022464,3]
[366527284,1750305044319,-5000.0,0.00022465,2]
[366527285,1750305044329,-500.0,0.00022465,2]
[366527286,1750305044339,-207.4,0.00022465,2]
[366527287,1750305044347,-500.0,0.00022465,2]
[366527288,1750305044358,-500.0,0.00022465,2]
[366527289,1750305044367,-500.0,0.00022465,2]
[366527290,1750305044376,-500.0,0.00022465,2]
[366527291,1750305044385,-500.0,0.00022465,2]
[366527292,1750305044395,-500.0,0.00022465,2]
[366527293,1750305044405,-500.0,0.00022465,2]
[366527294,1750305044414,-500.0,0.00022465,2]
[366527295,1750305044424,-500.0,0.00022465,2]
[366527296,1750305044433,-500.0,0.00022465,2]
[366527297,1750305044443,-500.0,0.00022465,2]
[366527298,1750305044452,-500.0,0.00022465,2]
[366527299,1750305044461,-500.0,0.00022465,2]
[366527300,1750305044470,-500.0,0.00022465,2]
[366527301,1750305044480,-460.0,0.00022465,6]
[366527302,1750305044490,-466.05355842,0.00022465,6]
[366527303,1750305044499,-380.98081843,0.00022465,6]
[366527304,1750305044508,-276.8474523,0.00022465,6]
[366527305,1750305044517,-222.32726583,0.00022465,6]
[366527306,1750305044527,-460.0,0.00022465,6]
[366527307,1750305044536,-460.0,0.00022465,6]
[366527308,1750305044545,-460.0,0.00022465,6]
[366527309,1750305044555,-564.19115529,0.00022465,6]
[366527310,1750305044564,-460.0,0.00022465,6]
[366527311,1750305044574,-2035.86,0.00022465,6]
[366527312,1750305044587,-460.0,0.00022465,6]
[366527313,1750305044597,-552.60251974,0.00022465,6]
[366527314,1750305044606,-460.0,0.00022465,6]
[366527315,1750305044615,-528.98,0.00022465,6]
[366527316,1750305044626,-460.0,0.00022465,6]
[366527317,1750305044636,-460.0,0.00022465,6]
[366527318,1750305044645,-460.0,0.00022465,6]
[366527319,1750305044656,-349.59661168,0.00022465,6]
[366527320,1750305044666,-460.0,0.00022465,6]
[366527321,1750305044675,-337.58598804,0.00022465,6]
[366527322,1750305044685,-460.0,0.00022465,6]
[366527323,1750305044695,-460.0,0.00022465,6]
[366527324,1750305044704,-2524.06,0.00022465,6]
[366527325,1750305044714,-460.0,0.00022465,6]
[366527326,1750305044724,-460.0,0.00022465,6]
[366527327,1750305044734,-460.0,0.00022465,6]
[366527328,1750305044744,-588.9,0.00022465,6]
[366527329,1750305044754,-560.97,0.00022465,6]
[366527330,1750305044765,-460.0,0.00022465,6]
[366527331,1750305044774,-1696.59,0.00022465,6]
[366527332,1750305044785,-471.60663099,0.00022465,6]
[366527333,1750305044794,-2250.32,0.00022465,6]
[366527334,1750305044804,-463.49,0.00022465,6]
[366527335,1750305044814,-460.0,0.00022465,6]
[366527336,1750305044824,-2046.75,0.00022465,6]
[366527337,1750305044834,-460.0,0.00022465,6]
[366527338,1750305044844,-460.0,0.00022465,2]
[366527339,1750305044854,-1053.61,0.00022465,6]
[366527340,1750305044864,-460.0,0.00022465,6]
[366527341,1750305044874,-847.09,0.00022465,6]
[366527342,1750305044884,-460.0,0.00022465,6]
[366527343,1750305044894,-460.0,0.00022465,6]
[366527344,1750305044904,-1347.18,0.00022465,6]
[366527345,1750305044914,-693.36,0.00022465,6]
[366527346,1750305044924,-1773.55,0.00022465,6]
[366527347,1750305044934,-460.0,0.00022465,6]
[366527348,1750305044943,-460.0,0.00022465,6]
[366527349,1750305044953,-460.0,0.00022465,6]
[366527350,1750305044963,-460.0,0.00022465,6]
[366527351,1750305044972,-460.0,0.00022465,6]
[366527352,1750305044982,-460.0,0.00022465,6]
[366527353,1750305044992,-460.0,0.00022465,6]
[366527354,1750305045001,-460.0,0.00022465,6]
[366527355,1750305045011,-348.38,0.00022465,6]
[366527356,1750305045021,-460.0,0.00022465,6]
[366527357,1750305045031,-300.0,0.00022465,2]
[366527358,1750305045042,-460.0,0.00022465,6]
[366527359,1750305045051,-460.0,0.00022465,6]
[366527360,1750305045060,-460.0,0.00022465,6]
[366527361,1750305045070,-460.0,0.00022465,6]
[366527362,1750305045080,-460.0,0.00022465,6]
[366527363,1750305045089,-931.97,0.00022465,6]
[366527364,1750305045099,-819.59,0.00022465,6]
[366527365,1750305045108,-460.0,0.00022465,6]
[366527366,1750305045118,-1291.08,0.00022465,6]
[366527367,1750305045127,-548.15,0.00022465,6]
[366527368,1750305045137,-1151.13,0.00022465,6]
[366527369,1750305045146,-460.0,0.00022465,6]
[366527370,1750305045156,-417.62072255,0.00022465,6]
[366527371,1750305045166,-460.0,0.00022465,6]
[366527372,1750305045176,-460.0,0.00022465,6]
[366527373,1750305045185,-460.0,0.00022465,6]
[366527374,1750305045195,-460.0,0.00022465,6]
[366527375,1750305045204,-366.05474838,0.00022465,6]
[366527376,1750305045214,-460.0,0.00022465,6]
[366527377,1750305045223,-460.0,0.00022465,6]
[366527378,1750305045233,-1783.82,0.00022465,6]
[366527379,1750305045243,-460.0,0.00022465,6]
[366527380,1750305045253,-460.0,0.00022465,6]
[366527381,1750305045262,-460.0,0.00022465,6]
[366527382,1750305045272,-2916.3,0.00022465,6]
[366527383,1750305045281,-460.0,0.00022465,6]
[366527384,1750305045291,-766.7,0.00022465,6]
[366527385,1750305045301,-516.39,0.00022465,6]
[366527386,1750305045310,-460.0,0.00022465,6]
[366527387,1750305045320,-460.0,0.00022465,6]
[366527388,1750305045330,-591.1,0.00022465,6]